fUSD/lending_fUSD_20240813
["ID","MTS","AMOUNT","RATE_DAILY","PERIOD"]
[334780045,1723555844590,-1109.25964547,0.00011,2]
[334780047,1723555844601,-305.74999996,0.00011,2]
[334780049,1723555844612,-240834.02598131,0.00011,2]
[334780051,1723555844623,-1299560.44544797,0.00011,2]
[334780053,1723555844635,-495.13548268,0.00011,2]
[334780066,1723555844749,-852.50000011,0.00011,2]
[334780068,1723555844761,-547.81294544,0.00011,2]
[334780071,1723555844775,-325.0,0.00011,2]
[334780073,1723555844786,-600.0,0.00011,2]
[334780215,1723555846326,-677.57587675,0.00011,2]
[334780319,1723555847365,-868.42412325,0.00011,2]
[334780321,1723555847375,-694.68087675,0.00011,2]
[334780323,1723555847387,-6064.3448183,0.00011,2]
[334780325,1723555847398,-11873.24394749,0.00011,2]
[334780329,1723555847459,-1435.0,0.00011,2]
[334780330,1723555847471,-1208.0,0.00011,2]
[334780331,1723555847540,-34618.1619488,0.00011,2]
[334780332,1723555847551,-4424.73536465,0.00011,2]
[334780333,1723555847562,-335.30570427,0.00011,2]
[334780334,1723555847573,-692.17038355,0.00011,2]
[334780335,1723555847584,-1030.64085005,0.00011,2]
[334780336,1723555847593,-402.17272693,0.00011,2]
[334780337,1723555847610,-297.63621753,0.00011,2]
[334780338,1723555847621,-15630.88102139,0.00011,2]
[334780339,1723555847633,-4033.03324518,0.00011,2]
[334780340,1723555847648,-2780.32010254,0.00011,2]
[334780378,1723555922765,285.4682,9.617e-05,2]
[334780379,1723555975631,227.78421077,9.617e-05,2]
[334780382,1723556057691,227.78421077,9.617e-05,2]
[334780383,1723556136153,227.78421077,9.617e-05,2]
[334780384,1723556143452,680.77,8.219e-05,2]
[334780385,1723556264163,227.78421077,8.219e-05,2]
[334780386,1723556364171,227.78421077,8.219e-05,2]
[334780387,1723556394172,227.78421077,8.219e-05,2]
[334780396,1723556509368,227.78421077,8.219e-05,2]
[334780402,1723556584083,-250.0,9.873e-05,2]
[334780403,1723556584105,-962.26073749,9.962e-05,2]
[334780404,1723556584128,-227.78421077,9.962e-05,2]
[334780405,1723556584150,-200.0,0.0001,10]
[334780406,1723556584173,-824.32,0.0001003,2]
[334780407,1723556584196,-300.0,0.00010042,2]
[334780408,1723556584218,-300.0,0.00010042,2]
[334780409,1723556584245,-2214.63505174,0.00010043,2]
[334780410,1723556607611,-340.54,9.915e-05,2]
[334780411,1723556607634,-962.26073749,9.962e-05,2]
[334780412,1723556607657,-3169.19926251,0.00010043,2]
[334780413,1723556650169,646.73,8.219e-05,2]
[334780414,1723556711186,227.78421077,8.219e-05,2]
[334780416,1723556741223,227.78421077,8.219e-05,2]
[334780417,1723556788636,1844.97390307,8.219e-05,2]
[334780418,1723556788674,14391.7832533,8.219e-05,2]
[334780419,1723556849201,227.78421077,8.219e-05,2]
[334780420,1723556887644,16236.75715637,8.219e-05,2]
[334780421,1723556908643,16236.75715637,8.219e-05,2]
[334780422,1723556936192,227.78421077,8.219e-05,2]
[334780431,1723557023868,16236.75715637,8.219e-05,2]
[334780432,1723557025203,227.78421077,8.219e-05,2]
[334780495,1723557031509,-636.79667401,9.901e-05,2]
[334780497,1723557031521,-5744.75104013,9.901e-05,2]
[334780498,1723557031534,-844.51228586,9.901e-05,2]
[334780499,1723557031544,-280.53,9.913e-05,2]
[334780501,1723557031554,-162.73988333,0.00010043,2]
[334780503,1723557031564,-181.85162494,0.00010043,2]
[334780504,1723557031574,-1205.68636838,0.00010043,2]
[334780505,1723557031583,-389.28648318,0.00010043,2]
[334780506,1723557031596,-9367.99327754,0.00010043,2]
[334780507,1723557031607,-2531.14512642,0.00010043,2]
[334780508,1723557031619,-1299.333284,0.00010043,2]
[334780509,1723557031630,-784.34351086,0.00010043,2]
[334780510,1723557031643,-330.0,0.00010043,2]
[334780511,1723557031656,-3406.03390733,0.00010043,2]
[334780512,1723557031677,-966.21666469,0.00010043,2]
[334780513,1723557031689,-741.8811006,0.00010043,2]
[334780514,1723557031701,-3854.66491203,0.00010043,2]
[334780515,1723557031711,-150.0,0.00010384,2]
[334780516,1723557031726,-646.73,0.00010472,2]
[334780517,1723557031737,-150.0,0.00010498,2]
[334780518,1723557031748,-571.97406493,0.00010499,2]
[334780519,1723557031760,-363.76455997,0.00010499,2]
[334780520,1723557031772,-619.65174307,0.00010499,2]
[334780523,1723557031785,-6683.26958659,0.00010499,2]
[334780524,1723557031797,-79591.5376702,0.00010499,2]
[334780525,1723557031808,-672.3424,0.00010499,2]
[334780526,1723557031825,-42869.91447524,0.00010499,2]
[334780527,1723557031835,-366.5348,0.00010499,2]
[334780528,1723557031846,-449.0828,0.000107,2]
[334780529,1723557031856,-150.0,0.0001073,2]
[334780530,1723557031866,-481.14,0.0001073,2]
[334780531,1723557031877,-150.0,0.00010739,2]
[334780532,1723557031886,-1500.0,0.0001079,2]
[334780533,1723557031896,-223.6374,0.0001079,2]
[334780534,1723557031906,-7263.17203223,0.000108,2]
[334780535,1723557031916,-12829.77921247,0.000108,2]
[334780536,1723557031926,-150.0,0.00010828,2]
[334780537,1723557031935,-1559.10193559,0.00010874,2]
[334780538,1723557031944,-1104.81322,0.0001089,2]
[334780539,1723557031954,-1500.0,0.00010899,2]
[334780540,1723557031964,-4855.84682535,0.00010899,2]
[334780541,1723557031979,-4534.84459588,0.000109,2]
[334780542,1723557031989,-1000.0,0.000109,2]
[334780543,1723557031998,-1104.81322,0.000109,2]
[334780544,1723557032009,-7500.0,0.000109,2]
[334780545,1723557032020,-224.43665032,0.000109,2]
[334780546,1723557032030,-286.94285339,0.000109,2]
[334780547,1723557032040,-330.65568639,0.000109,2]
[334780548,1723557032049,-150.0,0.00010921,2]
[334780549,1723557032058,-1104.81322,0.0001094,2]
[334780550,1723557032068,-250.0,0.00010959,2]
[334780551,1723557032078,-1104.81323,0.0001098,2]
[334780552,1723557032087,-150.0,0.00010984,2]
[334780553,1723557032097,-840.85981544,0.0001099,2]
[334780554,1723557032107,-840.85981544,0.0001099,2]
[334780555,1723557032117,-840.85981544,0.0001099,2]
[334780556,1723557032127,-166.71147446,0.00010997,2]
[334780557,1723557032137,-500.0,0.00010999,2]
[334780558,1723557032146,-581.6414145,0.00010999,2]
[334780559,1723557032155,-500.0,0.00010999,2]
[334780560,1723557032165,-500.0,0.00010999,2]
[334780561,1723557032175,-500.0,0.00010999,2]
[334780562,1723557032184,-334.24242078,0.00010999,2]
[334780563,1723557032194,-259.36026897,0.00010999,2]
[334780564,1723557032203,-1030.15064302,0.00010999,3]
[334780565,1723557032213,-1030.15064302,0.00010999,3]
[334780566,1723557032227,-150.01,0.00010999,2]
[334780567,1723557032237,-1527.0,0.00011,2]
[334780568,1723557032246,-202519.72511167,0.00011,2]
[334780569,1723557032258,-2522.06617273,0.00011,2]
[334780570,1723557032443,-7384.92556584,0.00011,2]
[334780571,1723557032454,-5865.45045287,0.00011,2]
[334780576,1723557037867,-2464.59432715,0.00011,2]
[334780577,1723557037879,-3152.32396951,0.00011,2]
[334780578,1723557037890,-2525.58351,0.00011,2]
[334780579,1723557037902,-250.485,0.00011,2]
[334780580,1723557037913,-482.62322656,0.00011,2]
[334780581,1723557037926,-902.63081299,0.00011,2]
[334780582,1723557037939,-918.803945,0.00011,2]
[334780583,1723557038054,-0.45161461,0.00011,2]
[334780584,1723557038102,-246392.04620518,0.00011,2]
[334780585,1723557038112,-536205.82501041,0.00011,2]
[334780586,1723557038124,-576.87446552,0.00011,2]
[334780723,1723557039632,-1308.53482217,0.00011,2]
[334780725,1723557039644,-1007.52312096,0.00011,2]
[334780727,1723557039660,-296.26,0.00011,2]
[334780729,1723557039671,-123239.7205778,0.00011,2]
[334780732,1723557039683,-871.55599035,0.00011,2]
[334780734,1723557039700,-198200.30956167,0.00011,2]
[334780737,1723557039712,-1593.55023297,0.00011,2]
[334780739,1723557039727,-531.84657874,0.00011,2]
[334780741,1723557039740,-2268.5,0.00011,2]
[334780743,1723557039751,-539.27673916,0.00011,2]
[334780745,1723557039763,-1140.8915915,0.00011,2]
[334780749,1723557039790,-1783.4682017,0.00011,2]
[334780751,1723557039801,-5169.12813013,0.00011,2]
[334781148,1723557043969,-359.73856219,0.00011,2]
[334781151,1723557043983,-6662.113764,0.00011,2]
[334781153,1723557043994,-7300.0,0.00011,2]
[334781155,1723557044006,-1302.1840501,0.00011,2]
[334781157,1723557044017,-122209.74019492,0.00011,2]
[334781159,1723557044029,-646656.74581744,0.00011,2]
[334781164,1723557044063,-5461.22,0.00011,2]
[334781166,1723557044075,-328.04999985,0.00011,2]
[334781168,1723557044087,-5420.415,0.00011,2]
[334781170,1723557044099,-1577.46,0.00011,2]
[334781338,1723557045739,-1323.0,0.00011,2]
[334781340,1723557045749,-1350.79999999,0.00011,2]
[334781353,1723557045865,-792.73224283,0.00011,2]
[334781356,1723557045877,-2985.11727615,0.00011,2]
[334781361,1723557045920,-64596.81690251,0.00011,2]
[334781363,1723557045931,-2289.91559988,0.00011,2]
[334781377,1723557046069,-1012.5,0.00011,2]
[334781379,1723557046082,-1470.51803953,0.00011,2]
[334782361,1723557609633,618.04,8.267e-05,2]
[334782364,1723557682801,227.78421077,8.267e-05,2]
[334782365,1723557696993,16236.75715637,8.267e-05,2]
[334782366,1723557808327,227.78421077,8.267e-05,2]
[334782367,1723557924260,227.78421077,8.267e-05,2]
[334782369,1723558078700,587.13,8.219e-05,2]
[334782395,1723558231705,-1746.55062526,9.962e-05,2]
[334782396,1723558231717,-1777.57937474,9.962e-05,2]
[334782397,1723558231727,-1726.4955282,9.962e-05,2]
[334782398,1723558231823,-8807.65754735,9.962e-05,2]
[334782399,1723558231834,-4712.57504688,0.0001002,2]
[334782400,1723558231844,-500.0,0.00010046,2]
[334782401,1723558231853,-250.0,0.00010057,2]
[334782402,1723558231863,-156.58714246,0.00010088,2]
[334782403,1723558231872,-272.44,0.00010119,2]
[334782404,1723558231882,-300.0,0.00010398,2]
[334782405,1723558231892,-803.4344,0.00010399,2]
[334782406,1723558231902,-156.58714245,0.00010444,2]
[334782407,1723558231911,-587.13,0.00010478,2]
[334782408,1723558231921,-150.0,0.00010799,2]
[334782409,1723558231930,-1428.32,0.00010799,2]
[334782410,1723558231939,-12829.77921247,0.000108,2]
[334782411,1723558231949,-156.58714245,0.000108,2]
[334782412,1723558231958,-856.85,0.000108,2]
[334782413,1723558231968,-499.99,0.0001089,2]
[334782414,1723558231977,-5318.4156,0.00010895,2]
[334782415,1723558231987,-2971.4468,0.000109,2]
[334782416,1723558231997,-16917.2253,0.000109,2]
[334782417,1723558232007,-500.0,0.000109,2]
[334782418,1723558232016,-2500.0,0.000109,2]
[334782419,1723558232026,-3000.0,0.000109,2]
[334782420,1723558232035,-499.36766,0.000109,2]
[334782421,1723558232045,-364.3739,0.000109,2]
[334782422,1723558232055,-443.0937,0.000109,2]
[334782423,1723558232064,-152.82182586,0.000109,2]
[334782424,1723558232074,-7500.0,0.000109,2]
[334782425,1723558232084,-167.15309653,0.000109,2]
[334782426,1723558232094,-241.94907099,0.000109,2]
[334782427,1723558232104,-287.049995,0.000109,2]
[334782428,1723558232113,-236.48905296,0.000109,2]
[334782429,1723558232122,-467.91858638,0.000109,2]
[334782430,1723558232133,-1042.67,0.00010959,5]
[334782431,1723558232142,-250.0,0.00010959,2]
[334782432,1723558232152,-2000.0,0.00010959,2]
[334782433,1723558232161,-151.21,0.0001099,2]
[334782434,1723558232170,-151.21,0.0001099,2]
[334782435,1723558232180,-151.21,0.0001099,2]
[334782436,1723558232189,-420.42990772,0.0001099,2]
[334782437,1723558232198,-420.42990772,0.0001099,2]
[334782438,1723558232208,-420.42990772,0.0001099,2]
[334782439,1723558232217,-1789.87382532,0.00010997,2]
[334782440,1723558232227,-314.7039863,0.00010998,2]
[334782441,1723558232236,-5102.0085366,0.00010998,2]
[334782442,1723558232246,-10250.3928874,0.00010998,2]
[334782443,1723558232255,-206.17458569,0.00010999,2]
[334782444,1723558232264,-1350.0,0.00011,2]
[334782445,1723558232274,-421713.76749575,0.00011,2]
[334782446,1723558232284,-373101.66854551,0.00011,2]
[334782447,1723558232309,-4512.8,0.00011,2]
[334782448,1723558232340,-395957.60032705,0.00011,2]
[334782449,1723558232352,-506.04443626,0.00011,2]
[334782452,1723558237745,-468.87,0.00011,2]
[334782453,1723558237880,-3846.94404154,0.000109,2]
[334782454,1723558237892,-585.70767439,0.000109,2]
[334782455,1723558238011,-3067.34828407,0.000109,2]
[334782456,1723558238020,-8836.42314556,0.00011,2]
[334782457,1723558238033,-5904.20000014,0.00011,2]
[334782458,1723558238044,-3113.43372609,0.00011,2]
[334782459,1723558238055,-2064.52335986,0.00011,2]
[334782460,1723558238066,-1003.89153268,0.00011,2]
[334782461,1723558238086,-296.73780503,0.00011,2]
[334782627,1723558239846,-1245.185,0.000109,2]
[334782633,1723558239893,-2264.48904993,0.000109,2]
[334782635,1723558239906,-1138.33585495,0.000109,2]
[334782637,1723558239916,-822.0054997,0.00011,2]
[334782639,1723558239927,-1916.29546318,0.00011,2]
[334782641,1723558239939,-1393.49202845,0.00011,2]
[334782657,1723558240084,-140532.65445873,0.00011,2]
[334782659,1723558240095,-40459.04663595,0.00011,2]
[334782661,1723558240106,-1186.31371876,0.00011,2]
[334782663,1723558240118,-4221.69107266,0.00011,2]
[334782665,1723558240130,-4019.09127962,0.00011,2]
[334782667,1723558240143,-315.6,0.00011,2]
[334783018,1723558243718,-736.62191061,0.000109,2]
[334783020,1723558243727,-18191.16727079,0.00011,2]
[334783189,1723558245841,-797.87674611,0.00011,2]
[334783191,1723558245852,-415.12325389,0.00011,2]
[334783193,1723558245862,-723.53134275,0.00011,2]
[334783195,1723558245874,-1250.0945842,0.00011,2]
[334783197,1723558245887,-2218.84058109,0.00011,2]
[334783219,1723558246085,-287.049995,0.00011,2]
[334783530,1723558499889,2155.5,0.0001,19]
[334783531,1723558529383,555.41,8.239e-05,2]
[334783532,1723558714941,569.09120069,8.239e-05,2]
[334783533,1723558817340,-412.1207,9.862e-05,2]
[334783534,1723558817362,-1384.60699076,9.962e-05,2]
[334783535,1723558817384,-300.0,9.999e-05,2]
[334783536,1723558817405,-1050.60325905,0.0001,2]
[334783537,1723558817434,-720.05251311,0.0001,2]
[334783538,1723558817457,-288.57906235,0.0001,2]
[334783539,1723558817479,-653.7077551,0.0001,2]
[334783540,1723558817507,-25190.32971963,0.0001,7]
[334783542,1723559000967,527.63,8.219e-05,2]
[334783543,1723559369806,1600.00602342,8.248e-05,10]
[334783566,1723559431947,-250.0,9.72e-05,2]
[334783567,1723559431957,-344.67731106,9.725e-05,2]
[334783568,1723559431968,-251.35461498,9.725e-05,2]
[334783569,1723559431979,-403.58410257,9.725e-05,2]
[334783570,1723559431990,-2416.0,9.725e-05,2]
[334783571,1723559432001,-4693.95357535,9.725e-05,2]
[334783572,1723559432012,-115.93039604,9.725e-05,2]
[334783573,1723559432024,-580.15,9.748e-05,2]
[334783574,1723559432034,-782.04,9.761e-05,2]
[334783575,1723559432043,-300.0,9.845e-05,2]
[334783576,1723559432052,-221.87960396,9.845e-05,2]
[334783577,1723559432064,-78.12039604,9.845e-05,2]
[334783578,1723559432073,-169.01,9.846e-05,2]
[334783579,1723559432082,-346.68520416,9.87e-05,2]
[334783580,1723559432093,-152.01479584,9.87e-05,2]
[334783581,1723559432102,-3196.63058918,9.87e-05,2]
[334783582,1723559432114,-1284.35585131,9.87e-05,2]
[334783583,1723559432125,-773.29397492,9.87e-05,2]
[334783584,1723559432134,-103.4360167,9.881e-05,2]
[334783585,1723559432146,-1577.0639833,9.881e-05,2]
[334783586,1723559432155,-225.82,9.899e-05,2]
[334783587,1723559432164,-391.67257725,9.899e-05,2]
[334783588,1723559432175,-26.67742275,9.899e-05,2]
[334783589,1723559432184,-369.97726967,9.962e-05,2]
[334783590,1723559432193,-150.0,9.999e-05,2]
[334783591,1723559432202,-1953.34530758,0.0001,7]
[334783592,1723559432251,-600.27,0.0001,7]
[334783593,1723559432262,-7211.0,0.0001,7]
[334783594,1723559432277,-20016.47580188,0.0001,7]
[334783595,1723559432288,-69028.57917091,0.0001,7]
[334783597,1723559432298,-413.17635557,0.0001,2]
[334783599,1723559432308,-181.82967322,0.0001,2]
[334783601,1723559432317,-300.00869841,0.0001,2]
[334783603,1723559432325,-170.51680053,0.0001,2]
[334783605,1723559432334,-449.61806259,0.0001,2]
[334783606,1723559432343,-162.73988333,0.0001,2]
[334783608,1723559432353,-905.094,0.0001,2]
[334783610,1723559432362,-228.7247844,0.0001,2]
[334783612,1723559432371,-217.96,0.00010048,2]
[334783614,1723559432380,-527.63,0.0001047,2]
[334783617,1723559432390,-1500.0,0.00010727,2]
[334783619,1723559432399,-535.65,0.00010727,2]
[334783621,1723559432408,-426.41,0.00010727,2]
[334783623,1723559432418,-426.41,0.00010727,2]
[334783625,1723559432427,-426.41,0.00010727,2]
[334783627,1723559432436,-150.0,0.00010728,2]
[334783629,1723559432446,-150.0,0.00010752,2]
[334783630,1723559432455,-150.0,0.00010762,2]
[334783631,1723559432464,-150.0,0.00010792,2]
[334783632,1723559432474,-150.0,0.00010794,2]
[334783633,1723559432483,-11496.03902676,0.000108,2]
[334783634,1723559432492,-499.99,0.000108,2]
[334783635,1723559432501,-174.18,0.00010807,2]
[334783636,1723559432511,-150.0,0.00010829,2]
[334783637,1723559432524,-420.0,0.00010829,2]
[334783638,1723559432534,-150.0,0.00010835,2]
[334783639,1723559432543,-150.0,0.00010845,2]
[334783640,1723559432552,-346.52630541,0.00010895,2]
[334783641,1723559432561,-4183.20891441,0.00010899,2]
[334783642,1723559432570,-2023.8104,0.000109,2]
[334783643,1723559432579,-20010.3904,0.000109,2]
[334783644,1723559432589,-3000.0,0.000109,2]
[334783645,1723559432598,-157.65936864,0.000109,2]
[334783646,1723559432607,-7500.0,0.000109,2]
[334783647,1723559432617,-168.55731249,0.000109,2]
[334783648,1723559432626,-161.29938066,0.000109,2]
[334783649,1723559432635,-5021.09625402,0.000109,2]
[334783650,1723559432645,-167.15309651,0.000109,2]
[334783651,1723559432654,-150.0,0.00010917,2]
[334783652,1723559432663,-1500.0,0.00010925,2]
[334783653,1723559432672,-184.78,0.00010959,2]
[334783654,1723559432681,-2000.0,0.00010959,2]
[334783655,1723559432691,-200.0,0.00010973,2]
[334783656,1723559432700,-151.22,0.0001098,2]
[334783657,1723559432710,-782.04,0.00010982,2]
[334783658,1723559432721,-528033.70410701,0.0001099,2]
[334783659,1723559432730,-120274.6040846,0.00010995,2]
[334783660,1723559432739,-4527.5388577,0.00010998,2]
[334783661,1723559432749,-150.01,0.00010999,2]
[334783662,1723559432758,-255.0,0.00010999,2]
[334783663,1723559432770,-1035.0,0.00011,2]
[334783664,1723559432780,-117617.60550807,0.00011,2]
[334783665,1723559432790,-372.08019945,0.00011,2]
[334783666,1723559432799,-875096.32754765,0.00011,2]
[334783669,1723559438021,-19378.16748269,0.00011,2]
[334783670,1723559438042,-2289.74559752,0.00011,2]
[334783671,1723559438061,-4985.0801,0.00011,2]
[334783672,1723559438193,-1575.43818511,0.00011,2]
[334783673,1723559438335,-12385.66119734,0.00011,2]
[334783674,1723559438347,-7520.63475626,0.00011,2]
[334783675,1723559438359,-297.48711185,0.00011,2]
[334783676,1723559438384,-1270.89616337,0.00011,2]
[334783825,1723559439950,-281.79378115,0.000109,2]
[334783827,1723559439962,-549.88334941,0.000109,2]
[334783829,1723559439974,-1671.8757681,0.000109,2]
[334784097,1723559442966,-4996.44710134,0.000109,2]
[334784098,1723559442976,-7036.87185866,0.00011,2]
[334784101,1723559442987,-4011.9194,0.00011,2]
[334784103,1723559442999,-1540.0000006,0.00011,2]
[334784105,1723559443009,-6006.0,0.00011,2]
[334784200,1723559444407,-8479.63585047,0.00011,2]
[334784201,1723559444418,-1200.0,0.00011,2]
[334784202,1723559444429,-325.96968211,0.00011,2]
[334784208,1723559446204,-260.0,0.00011,2]
[334784209,1723559446282,-648.45221928,0.00011,2]
[334784212,1723559446301,-1434.90208133,0.00011,2]
[334784391,1723559499970,474.86,9.142e-05,2]
[334784405,1723559959392,451.11,8.263e-05,2]
[334784445,1723560573028,428.55,8.219e-05,2]
[334784465,1723560632212,-250.0,9.936e-05,2]
[334784467,1723560632222,-162.84036236,0.0001,2]
[334784468,1723560632231,-413.17635557,0.0001,2]
[334784469,1723560632240,-449.61806259,0.0001,2]
[334784470,1723560632248,-170.51680053,0.0001,2]
[334784471,1723560632257,-300.0,0.00010009,2]
[334784472,1723560632267,-14665.56918661,0.0001001,2]
[334784473,1723560632276,-3741.92,0.00010011,2]
[334784474,1723560632286,-469.23,0.00010015,2]
[334784475,1723560632295,-150.0,0.00010274,2]
[334784476,1723560632305,-219.34,0.00010305,2]
[334784477,1723560632314,-428.55,0.00010474,2]
[334784478,1723560632324,-530.77,0.00010567,2]
[334784479,1723560632333,-1096.13,0.00010567,2]
[334784480,1723560632342,-426.41,0.000106,2]
[334784481,1723560632352,-426.41,0.00010778,2]
[334784482,1723560632361,-1003.4977,0.000108,2]
[334784483,1723560632371,-5364.9127,0.0001089,2]
[334784484,1723560632380,-3764.88802296,0.00010899,2]
[334784485,1723560632392,-150.0,0.00010899,2]
[334784486,1723560632401,-3000.0,0.000109,2]
[334784487,1723560632411,-426.41,0.000109,2]
[334784488,1723560632420,-426.41,0.000109,2]
[334784489,1723560632429,-175.79295126,0.000109,2]
[334784490,1723560632438,-152.88036892,0.000109,2]
[334784491,1723560632448,-7500.0,0.000109,2]
[334784492,1723560632457,-157.65936862,0.000109,2]
[334784493,1723560632466,-1000.0,0.000109,2]
[334784494,1723560632476,-970.08715885,0.000109,2]
[334784495,1723560632486,-168.55731249,0.000109,2]
[334784496,1723560632496,-346.5263054,0.000109,2]
[334784497,1723560632505,-250.0,0.00010959,2]
[334784498,1723560632514,-153.99,0.00010959,2]
[334784499,1723560632524,-769.96,0.00010959,2]
[334784500,1723560632534,-140242.16554521,0.0001099,2]
[334784501,1723560632546,-73309.13119156,0.00010995,2]
[334784502,1723560632559,-574.91433,0.00010995,2]
[334784503,1723560632570,-56024.55435014,0.00010995,2]
[334784504,1723560632580,-11414.5486218,0.00010995,2]
[334784505,1723560632589,-671.6832941,0.00010995,2]
[334784507,1723560632598,-174.44832434,0.00010998,2]
[334784509,1723560632608,-150.01,0.00010999,2]
[334784510,1723560632618,-236.98,0.00010999,2]
[334784511,1723560632629,-1203.0,0.00011,2]
[334784512,1723560632643,-226934.77540977,0.00011,2]
[334784513,1723560632659,-858.782925,0.00011,2]
[334784514,1723560632672,-73272.76094215,0.00011,2]
[334784515,1723560632685,-355.41834579,0.00011,2]
[334784516,1723560632698,-1765.30034146,0.00011,2]
[334784517,1723560632712,-1127.61331614,0.00011,2]
[334784518,1723560632726,-36015.00812844,0.00011,2]
[334784519,1723560632737,-6353.71704752,0.00011,2]
[334784526,1723560638497,-32073.67906337,0.00011,2]
[334784527,1723560638508,-756.50129239,0.00011,2]
[334784528,1723560638519,-1393.41253977,0.00011,2]
[334784529,1723560638530,-1699.50958547,0.00011,2]
[334784530,1723560638541,-1559.04212574,0.00011,2]
[334784531,1723560638552,-45636.65049644,0.00011,2]
[334784532,1723560638562,-979.0,0.00011,2]
[334784533,1723560638572,-116005.38513522,0.00011,2]
[334784534,1723560638583,-11129.9312,0.00011,2]
[334784535,1723560638595,-2603.10643675,0.00011,2]
[334784537,1723560638618,-425.4,0.00011,2]
[334784539,1723560638629,-421.78588728,0.00011,2]
[334784541,1723560638641,-2364.01451426,0.00011,2]
[334784544,1723560638653,-724.97184001,0.00011,2]
[334784546,1723560638664,-434.77842551,0.00011,2]
[334784548,1723560638675,-4522.19999999,0.00011,2]
[334784550,1723560638686,-19074.73857867,0.00011,2]
[334784551,1723560638697,-866.09335656,0.00011,2]
[334784552,1723560638708,-2709.48663959,0.00011,2]
[334784568,1723560640283,-969.65529697,0.00011,2]
[334784569,1723560640294,-677.86115073,0.00011,2]
[334784570,1723560640305,-59278.76274045,0.00011,2]
[334784571,1723560640316,-38721.42066455,0.00011,2]
[334784572,1723560640361,-1793.3580165,0.00011,2]
[334784573,1723560640372,-391.951146,0.00011,2]
[334784574,1723560640383,-337.94,0.00011,2]
[334784575,1723560640398,-3015.37057037,0.00011,2]
[334784576,1723560640461,-79453.25159359,0.00011,2]
[334784577,1723560640471,-998.486475,0.00011,2]
[334784578,1723560640539,-4898.45,0.00011,2]
[334784579,1723560640550,-2925.98626232,0.00011,2]
[334784580,1723560640560,-1458.91842534,0.00011,2]
[334784581,1723560640571,-4125.98200796,0.00011,2]
[334784989,1723560644726,-161.29938064,0.000109,2]
[334784991,1723560644736,-107512.16393082,0.00011,2]
[334784993,1723560644745,-251.50765915,0.00011,2]
[334784995,1723560644754,-964377.82462218,0.00011,2]
[334784998,1723560644770,-3972.09929284,0.00011,2]
[334785001,1723560644789,-343.34094003,0.00011,2]
[334785003,1723560644801,-8823.99346952,0.00011,2]
[334785006,1723560644811,-614.29174979,0.00011,2]
[334785008,1723560644827,-1280.65424836,0.00011,2]
[334785009,1723560644839,-977.79543901,0.00011,2]
[334785010,1723560644850,-238107.88039162,0.00011,2]
[334785011,1723560644861,-1377.53454,0.00011,2]
[334785012,1723560644895,-2551.14997692,0.00011,2]
[334785013,1723560644906,-177805.24882099,0.00011,2]
[334785014,1723560644917,-360.77564865,0.00011,2]
[334785015,1723560644929,-20433.18461526,0.00011,2]
[334785016,1723560644940,-2248.95674392,0.00011,2]
[334785120,1723560646359,-880.0,0.00011,2]
[334785122,1723560646368,-926.16502112,0.00011,2]
[334785130,1723560646429,-403.53386833,0.00011,2]
[334785132,1723560646441,-1040.67985396,0.00011,2]
[334785134,1723560646452,-1869.3662922,0.00011,2]
[334785139,1723560646498,-592.20419882,0.00011,2]
[334785146,1723560646561,-1321.4022825,0.00011,2]
[334785148,1723560646572,-6372.4344052,0.00011,2]
[334785150,1723560646583,-530.6,0.00011,2]
[334785221,1723560971929,1073.0,0.00027,120]
[334785224,1723561149075,395.2,8.219e-05,2]
[334785227,1723561604094,4672.83,9.649e-05,2]
[334785228,1723561647595,375.44,8.219e-05,2]
[334785229,1723561696099,250.0,9.651e-05,2]